bitfinex-derivatives/quotes_ETHF0:USTF0_20240829
["timestamp","ask_amount","ask_price","bid_price","bid_amount"]
[1724939766612,0.38873,2571.8,2571.3,3.2078]
[1724939767012,0.9718,2571.9,2571.3,3.2078]
[1724939767218,0.38878,2571.5,2571.2,5.14584317]
[1724939767626,0.38881,2571.3,2571.2,0.00584317]
[1724939767920,3.2078,2571.8,2571.2,0.00584317]
[1724939768123,7.52196806,2571.8,2571.2,0.00584317]
[1724939768315,0.3888,2571.4,2571.2,0.00584317]
[1724939768520,4.31416806,2571.7,2571.2,0.00584317]
[1724939768728,0.38881,2571.3,2571.2,0.00584317]
[1724939769529,3.2078,2571.7,2571.2,3.89464317]
[1724939769726,0.38879,2571.4,2571.2,0.00584317]
[1724939769922,0.38878,2571.5,2571.2,0.00584317]
[1724939770234,0.97168,2572.2,2571.3,9.0288]
[1724939770419,0.38872,2571.9,2571.4,0.38878]
[1724939770726,0.38872,2571.9,2571.3,5.14]
[1724939770727,4.1007806,2572.1,2571.5,3.2078]
[1724939771028,1.94336,2572.2,2571.2,3.21364317]
[1724939771229,3.98720052,2572.2,2571.2,8.35364317]
[1724939771418,3.2078,2572.4,2571.7,0.38874]
[1724939771723,3.2078,2572.4,2571.6,3.2078]
[1724939771929,4.25347665,2572.3,2571.6,3.2078]
[1724939772117,0.38861,2572.7,2572.0,5.14]
[1724939772314,0.97122,2573.5,2571.9,3.2078]
[1724939772315,3.2078,2573.3,2572.5,3.2078]
[1724939772519,3.2078,2573.1,2572.6,0.0058317]
[1724939772722,0.3639,2573.9,2572.6,0.0058317]
[1724939772723,0.38859,2572.7,2572.6,0.0058317]
[1724939772924,0.97134,2573.2,2572.6,0.0058317]
[1724939773221,0.38857,2572.9,2572.6,0.0058317]
[1724939773428,0.97127,2573.3,2572.6,0.0058317]
[1724939773730,0.38856,2573.0,2572.6,0.3944317]
[1724939773928,3.2078,2573.5,2572.6,0.3944317]
[1724939773929,0.38859,2572.8,2572.6,0.0058317]
[1724939774118,5.09811202,2573.4,2572.6,0.0058317]
[1724939774321,4.12688202,2572.9,2572.6,0.3944317]
[1724939774528,0.38857,2572.9,2572.6,0.0058317]
[1724939774823,0.38852,2573.2,2572.6,0.0058317]
[1724939775124,4.12688202,2573.3,2572.6,0.0058317]
[1724939775125,0.38858,2572.8,2572.6,0.0058317]
[1724939775322,4.73401415,2573.0,2572.6,0.3944417]
[1724939775530,0.38856,2573.0,2572.6,0.3944417]
[1724939776030,0.38859,2572.7,2572.6,0.0058317]
[1724939776230,1.36008,2572.7,2572.6,0.0058317]
[1724939776419,5.24728,2572.7,2572.6,0.0058317]
[1724939776619,0.3887,2572.0,2571.8,8.4738]
[1724939776829,0.38872,2571.9,2571.8,5.266]
[1724939777036,5.73645396,2571.9,2571.8,5.266]
[1724939777233,9.62445396,2571.9,2571.8,5.266]
[1724939777524,0.38876,2571.6,2571.5,3.89]
[1724939778620,1.36067,2571.6,2571.5,3.89]
[1724939778822,0.38879,2571.4,2571.3,0.0058317]
[1724939779028,3.2078,2571.4,2570.5,5.14]
[1724939779223,0.38891,2570.7,2570.3,3.2078]
[1724939779425,0.38891,2570.7,2570.3,3.59675]
[1724939779627,0.97217,2570.9,2570.3,3.2078]
[1724939779824,0.97217,2570.9,2570.2,0.3713]
[1724939780031,4.77941277,2570.9,2570.4,0.38894]
[1724939780225,0.38888,2570.9,2570.3,0.0058317]
[1724939780427,0.97206,2571.2,2570.3,0.0058317]
[1724939780625,0.38894,2570.4,2570.3,0.0058317]
[1724939781129,8.4595,2570.4,2570.3,0.0058317]
[1724939781931,4.27934,2570.4,2570.3,0.0058317]
[1724939782432,12.5438327,2570.4,2570.3,0.0058317]
[1724939782630,8.3636727,2570.4,2570.3,0.0058317]
[1724939782934,7.9747327,2570.4,2570.3,0.0058317]
[1724939783144,3.2078,2570.8,2570.3,0.0058317]
[1724939783638,3.2078,2570.8,2570.4,0.38893]
[1724939783639,4.28174059,2570.7,2570.4,0.38893]
[1724939783928,3.2078,2570.8,2570.3,5.2708317]
[1724939784328,0.38892,2570.6,2570.3,5.2708317]
[1724939784727,0.38893,2570.5,2570.3,5.2708317]
[1724939784931,0.38894,2570.4,2570.3,5.2708317]
[1724939785329,4.22593184,2570.5,2570.3,5.2708317]
[1724939785330,0.38893,2570.5,2570.3,5.2708317]
[1724939785633,4.22593184,2570.7,2570.3,5.2708317]
[1724939785634,0.38894,2570.4,2570.3,5.2708317]
[1724939786436,0.38894,2570.4,2570.3,0.0058317]
[1724939786437,9.48311734,2570.4,2570.3,0.0058317]
[1724939786830,8.51075734,2570.4,2570.3,0.0058317]
[1724939787131,0.38894,2570.4,2570.3,0.0058317]
[1724939788842,3.2078,2571.1,2570.3,3.8962317]
[1724939789038,3.2078,2571.1,2570.3,0.0058317]
[1724939789039,0.97217,2570.9,2570.3,0.0058317]
[1724939789235,0.3889,2570.7,2570.3,0.0058317]
[1724939789535,0.38887,2570.9,2570.4,0.38893]
[1724939789735,3.2078,2571.1,2570.3,0.0058317]
[1724939790035,4.47773222,2570.8,2570.7,0.3889]
[1724939790337,3.2078,2571.1,2570.3,3.2136317]
[1724939790633,0.3889,2570.7,2570.4,5.266]
[1724939790841,0.38893,2570.6,2570.4,5.266]
[1724939791033,3.2078,2571.1,2570.4,5.266]
[1724939791233,3.2078,2571.1,2570.6,3.2078]
[1724939791730,3.2078,2571.1,2570.7,0.3889]
[1724939791933,0.38889,2570.8,2570.4,5.6318]
[1724939792240,4.31227708,2570.7,2570.4,5.266]
[1724939792531,3.2078,2571.1,2570.5,3.2078]
[1724939792735,4.31227708,2571.0,2570.5,3.2078]
[1724939793032,3.59664,2571.1,2570.4,5.266]
[1724939793234,3.2078,2571.1,2570.4,5.266]
[1724939793438,0.38886,2571.0,2570.4,5.266]
[1724939793634,3.2078,2571.1,2570.8,0.38887]
[1724939794130,0.00579346,2571.8,2571.0,3.2078]
[1724939794331,0.00579346,2571.8,2571.3,3.2078]
[1724939794535,4.49284288,2571.7,2571.4,0.38878]
[1724939794732,4.49284288,2571.7,2571.6,0.38876]
[1724939794936,0.00579346,2571.8,2571.7,0.38875]
[1724939795126,0.00579346,2571.8,2571.7,4.27755]
[1724939795331,0.00135019,2571.8,2571.7,3.8888]
[1724939795629,0.00135019,2571.8,2571.5,5.65477]
[1724939795827,0.00135019,2571.8,2571.5,5.266]
[1724939796032,0.38875,2571.7,2571.5,5.266]
[1724939796436,0.38875,2571.7,2571.2,3.2078]
[1724939796437,0.38876,2571.6,2571.2,3.59661]
[1724939796631,4.45151917,2571.6,2571.3,0.3888]
[1724939796834,0.38876,2571.6,2571.2,8.86261]
[1724939797140,0.00135019,2571.8,2571.5,0.38877]
[1724939797440,0.00135019,2571.8,2571.6,0.38876]
[1724939797641,0.00135019,2571.8,2571.2,8.4738]
[1724939797941,0.00135019,2571.8,2571.7,0.38875]
[1724939798144,0.38861,2572.6,2571.7,6.38875]
[1724939798437,0.38861,2572.6,2571.5,4.17975]
[1724939798438,0.38862,2572.6,2572.2,0.38866]
[1724939798741,3.2078,2572.8,2572.2,3.2078]
[1724939798742,4.13901536,2572.7,2572.2,3.2078]
[1724939798941,0.38865,2572.3,2572.2,3.2078]
[1724939799132,0.9716,2572.5,2572.0,0.0058317]
[1724939799133,0.38869,2572.1,2572.0,0.0058317]
[1724939799328,0.0058317,2572.5,2572.0,0.0058317]
[1724939799828,0.38865,2572.4,2572.0,0.3945317]
[1724939800029,0.38866,2572.3,2572.0,0.0058317]
[1724939800329,4.76615675,2572.3,2572.0,0.0058317]
[1724939800534,0.38867,2572.2,2572.0,0.0058317]
[1724939800929,0.38869,2572.1,2572.0,0.0058317]
[1724939801132,4.76617675,2572.1,2572.0,0.0058317]
[1724939801435,4.86020896,2572.4,2572.0,0.3945217]
[1724939801741,0.0058317,2572.5,2572.1,3.2078]
[1724939801940,0.38866,2572.3,2572.1,3.2078]
[1724939802237,4.71861513,2572.2,2572.1,3.2078]
[1724939802631,8.60661513,2572.2,2572.1,3.2078]
[1724939802852,4.32994513,2572.2,2572.1,3.59649]
[1724939803031,0.3944617,2572.5,2572.1,3.59649]
[1724939803336,0.0058317,2572.5,2572.3,0.38865]
[1724939803536,0.0058317,2572.5,2572.1,3.5891]
[1724939803741,0.0058317,2572.5,2572.3,0.38865]
[1724939804132,0.0058317,2572.5,2572.1,0.3813]
[1724939804133,0.3944617,2572.5,2572.1,0.3813]
[1724939804442,0.3944617,2572.5,2572.1,0.76997]
[1724939804633,0.3944617,2572.5,2572.2,0.38867]
[1724939804634,0.0058317,2572.5,2572.2,0.38867]
[1724939805229,0.97161,2572.4,2572.1,0.3813]
[1724939805436,0.97161,2572.4,2572.0,3.2136317]
[1724939805437,4.72035891,2572.4,2572.0,3.2136317]
[1724939805642,0.38865,2572.4,2572.1,0.38868]
[1724939805841,4.72036891,2572.3,2572.0,3.6023217]
[1724939806238,0.0058317,2572.5,2572.0,3.2136317]
[1724939806239,0.38869,2572.1,2572.0,3.2136317]
[1724939806540,4.47835699,2572.2,2572.1,0.38868]
[1724939806742,4.47835699,2572.2,2572.0,3.2136317]
[1724939806743,0.0058317,2572.5,2572.0,3.2136317]
[1724939806937,4.47835699,2572.4,2572.3,0.38865]
[1724939807141,0.0058317,2572.5,2572.4,0.38864]
[1724939807444,4.07422592,2572.4,2572.1,0.38868]
[1724939807645,0.38866,2572.3,2572.0,3.6023217]
[1724939807843,0.38867,2572.2,2572.0,3.2136317]
[1724939808142,4.49974998,2572.3,2572.0,3.2136317]
[1724939808336,0.38867,2572.2,2572.0,3.2136317]
[1724939808740,0.38869,2572.1,2572.0,3.2136317]
[1724939809347,0.38869,2572.1,2572.0,0.0058317]
[1724939809348,1.36041,2572.1,2572.0,0.0058317]
[1724939810038,9.61463957,2572.1,2572.0,0.0058317]
[1724939810640,9.61463957,2572.1,2571.5,8.5798]
[1724939810641,0.38876,2571.6,2571.5,8.5798]
[1724939811142,0.97182,2571.9,2571.5,8.5798]
[1724939811342,0.38876,2571.6,2571.5,8.5798]
[1724939811644,4.19346209,2571.8,2571.5,3.2078]
[1724939811945,0.38872,2571.9,2571.6,0.38875]
[1724939812147,4.19346209,2572.0,2571.9,0.38872]
[1724939812350,0.97162,2572.4,2572.0,0.3887]
[1724939812547,0.0058317,2572.5,2571.9,3.2078]
[1724939812849,0.38866,2572.3,2572.0,0.38869]
[1724939813245,4.6814128,2572.4,2572.1,0.38868]
[1724939813545,4.6814128,2572.4,2572.1,0.38867]
[1724939813847,4.2927628,2572.4,2572.3,0.38865]
[1724939814060,0.0058317,2572.5,2572.4,0.38864]
[1724939814551,0.0058317,2572.5,2572.3,0.38865]
[1724939814749,0.0058317,2572.5,2572.1,0.76518]
[1724939814949,0.38867,2572.3,2572.1,0.3765]
[1724939815249,0.38866,2572.3,2572.1,0.3765]
[1724939815545,0.0058317,2572.5,2572.4,0.38864]
[1724939815862,0.0058317,2572.5,2572.4,3.59644]
[1724939816047,0.0020394,2572.5,2572.4,13.48364]
[1724939816248,0.0020394,2572.5,2572.4,13.095]
[1724939816550,0.0020394,2572.5,2572.4,7.095]
[1724939817551,0.0020394,2572.5,2572.4,3.2078]
[1724939817855,0.38862,2572.6,2572.5,1.2803606]
[1724939818243,0.38865,2572.3,2572.2,5.266]
[1724939818452,3.8872,2572.5,2572.2,5.266]
[1724939818751,4.48884246,2572.4,2572.2,5.266]
[1724939819155,4.27585,2572.3,2572.2,5.266]
[1724939819350,7.095,2572.3,2571.5,3.2078]
[1724939819544,0.38869,2572.1,2571.5,3.2078]
[1724939819943,4.0539715,2572.0,2571.5,3.2078]
[1724939820253,0.38877,2571.6,2571.4,5.266]
[1724939820454,0.3608,2571.9,2571.3,3.8948317]
[1724939820750,0.3608,2572.4,2571.3,7.1026317]
[1724939820957,4.19489108,2571.9,2571.3,7.1026317]
[1724939821145,4.19489108,2572.2,2571.3,7.1026317]
[1724939821450,3.2078,2572.3,2571.3,7.4914317]
[1724939821651,4.49532853,2572.1,2571.3,7.1026317]
[1724939821953,4.49532853,2572.2,2571.8,0.38873]
[1724939822142,3.2078,2572.3,2571.7,0.38874]
[1724939822542,3.2078,2572.3,2571.8,0.38873]
[1724939822753,0.0058317,2572.6,2571.7,3.2078]
[1724939823060,0.0058317,2572.6,2571.7,7.3988]
[1724939823255,0.38864,2572.4,2571.7,7.3988]
[1724939823455,4.41783011,2572.5,2572.0,3.2078]
[1724939823652,4.41783011,2572.5,2572.0,3.59649]
[1724939823849,4.41783011,2572.5,2572.0,3.2078]
[1724939824158,0.38864,2572.4,2571.8,5.3173]
[1724939824356,3.2078,2572.4,2571.7,4.191]
[1724939824656,0.38872,2571.9,2571.7,4.191]
[1724939824858,8.43448388,2572.3,2571.3,3.8948317]
[1724939825053,8.43448388,2572.3,2571.3,4.2836317]
[1724939825054,4.18808388,2571.8,2571.3,4.2836317]
[1724939825255,0.38869,2572.1,2571.4,0.38879]
[1724939825447,0.38874,2571.8,2571.3,3.8948317]
[1724939825652,4.37775742,2571.9,2571.3,3.8948317]
[1724939826057,7.58555742,2571.7,2571.3,0.0058317]
[1724939826358,3.59656,2571.7,2571.3,0.0058317]
[1724939826551,4.76651742,2571.6,2571.3,0.0058317]
[1724939826758,4.37775742,2571.6,2571.3,0.0058317]
[1724939826954,3.2078,2571.7,2571.3,0.0058317]
[1724939827145,4.42979512,2571.5,2571.3,0.0058317]
[1724939827352,4.07918186,2571.6,2571.3,0.0058317]
[1724939827551,3.2078,2571.9,2571.3,0.3946317]
[1724939827757,0.38874,2571.8,2571.3,0.0058317]
[1724939828059,0.38877,2571.6,2571.3,0.0058317]
[1724939828451,4.48591039,2571.5,2571.3,0.0058317]
[1724939828759,4.48591039,2571.5,2571.3,0.3946317]
[1724939828958,4.48591039,2571.5,2571.3,0.0058317]
[1724939829863,3.2078,2571.9,2571.4,0.38879]
[1724939830154,0.38874,2571.8,2571.3,0.3946317]
[1724939830354,0.38879,2571.4,2571.3,0.0058317]
[1724939830666,4.41082006,2571.4,2570.3,3.2078]
[1724939830850,0.38891,2570.6,2570.3,3.2078]
[1724939831161,0.38894,2570.5,2570.3,3.2078]
[1724939831353,4.08409297,2570.5,2570.3,3.2078]
[1724939831553,9.10987,2571.2,2570.3,3.2078]
[1724939831757,0.0058317,2570.7,2570.3,3.2078]
[1724939831954,0.0058317,2570.7,2570.4,0.38894]
[1724939832255,0.0058317,2570.7,2570.3,3.2078]
[1724939832459,4.4542084,2570.6,2570.3,3.2078]
[1724939832659,0.38894,2570.5,2570.3,3.2078]
[1724939833055,4.4542084,2570.6,2570.3,3.2078]
[1724939833253,0.38894,2570.4,2570.3,3.2078]
[1724939833456,0.38894,2570.4,2570.1,0.0058317]
[1724939833457,0.38897,2570.3,2570.1,0.0058317]
[1724939833761,0.38897,2570.2,2570.1,0.0058317]
[1724939833956,8.67307757,2570.2,2570.1,0.0058317]
[1724939834155,4.39370757,2570.2,2570.1,0.0058317]
[1724939834359,3.2078,2570.3,2570.1,0.0058317]
[1724939834858,4.40637752,2570.2,2570.1,0.0058317]
[1724939835060,4.79534752,2570.2,2570.1,0.0058317]
[1724939835255,4.79534752,2570.2,2569.5,3.888]
[1724939835256,0.38906,2569.6,2569.5,3.888]
[1724939835560,0.38911,2569.4,2568.7,3.5833]
[1724939835753,0.38911,2569.3,2568.7,3.5833]
[1724939835954,0.61862183,2569.3,2568.7,3.5833]
[1724939836152,3.2078,2569.6,2568.7,3.5833]
[1724939836357,0.0058317,2569.4,2568.9,0.0058317]
[1724939836557,0.0058317,2569.4,2569.0,3.2078]
[1724939836755,0.0058317,2569.4,2569.0,0.38915]
[1724939836950,0.0058317,2569.4,2568.9,3.6027917]
[1724939837151,4.10923848,2569.3,2568.9,0.0058317]
[1724939837351,4.10923848,2569.3,2569.0,0.38915]
[1724939837555,0.0058317,2569.4,2568.9,3.2136317]
[1724939837753,0.0058317,2569.4,2569.2,0.38912]
[1724939837952,0.0058317,2569.4,2569.3,4.28111]
[1724939838154,0.0058317,2569.4,2569.3,4.63661]
[1724939838656,3.59675,2570.4,2569.3,10.2475]
[1724939838851,3.59675,2570.4,2569.7,3.2078]
[1724939839055,4.07148928,2570.3,2570.0,3.2078]
[1724939839367,0.38893,2570.5,2570.0,3.2078]
[1724939839656,7.38937887,2570.4,2570.0,0.0058317]
[1724939839861,0.38899,2570.1,2570.0,0.0058317]
[1724939840363,14.54915442,2570.1,2570.0,0.0058317]
[1724939840552,8.16016442,2570.1,2570.0,0.0058317]
[1724939841054,3.2078,2570.4,2570.0,0.0058317]
[1724939841055,3.59675,2570.4,2570.0,0.0058317]
[1724939841255,3.2078,2570.4,2570.0,0.0058317]
[1724939841565,4.62926117,2570.3,2570.0,0.0058317]
[1724939841764,0.38897,2570.2,2570.0,0.0058317]
[1724939842061,4.24030117,2570.3,2570.0,0.0058317]
[1724939842368,4.29982093,2570.2,2570.0,0.3948317]
[1724939842572,4.29982093,2570.2,2570.1,3.59679]
[1724939842763,0.0058317,2570.5,2570.4,0.38894]
[1724939842953,0.0058317,2570.5,2570.3,0.38895]
[1724939843264,0.0058317,2570.5,2570.1,3.5687]
[1724939843753,0.0058317,2570.5,2570.3,0.38895]
[1724939843959,0.0058317,2570.5,2570.1,3.5687]
[1724939843960,0.0058317,2570.5,2570.2,0.38897]
[1724939844163,0.38895,2570.4,2570.1,3.5687]
[1724939844359,0.0058317,2570.5,2570.1,3.5687]
[1724939844360,0.3947717,2570.5,2570.1,3.5687]
[1724939844670,0.0058317,2570.5,2570.1,3.95768]
[1724939845164,0.0058317,2570.5,2570.2,0.38897]
[1724939845370,0.0058317,2570.5,2570.1,3.5687]
[1724939845557,4.51318015,2570.4,2570.1,3.2078]
[1724939846059,0.0058317,2570.5,2570.4,0.38894]
[1724939846560,0.0058317,2570.5,2570.4,13.48714]
[1724939846761,5.13,2571.6,2570.4,13.48714]
[1724939846762,3.2078,2571.7,2570.5,0.97232]
[1724939846958,0.3888,2571.4,2570.9,3.2078]
[1724939847163,0.3888,2571.4,2571.0,0.38884]
[1724939847164,4.05260081,2571.3,2571.0,0.38884]
[1724939847362,0.38883,2571.2,2570.9,3.2078]
[1724939847562,0.57857937,2572.7,2570.9,3.2078]
[1724939847563,1.35016,2572.3,2570.9,3.2078]
[1724939847763,4.19401687,2571.3,2571.2,3.2078]
[1724939847973,0.35645354,2571.7,2571.2,3.2078]
[1724939848162,0.0058317,2571.7,2571.2,3.2078]
[1724939848359,4.4383214,2571.5,2571.2,3.2078]
[1724939848564,4.4383214,2571.6,2571.3,0.3888]
[1724939848764,0.0058317,2571.7,2571.5,3.2078]
[1724939848960,0.0058317,2571.7,2571.5,3.59657]
[1724939849166,0.0058317,2571.7,2571.6,0.38876]
[1724939849371,0.0058317,2571.7,2571.5,3.2078]
[1724939849769,0.0058317,2571.7,2571.5,3.59657]
[1724939849963,0.0058317,2571.7,2571.5,3.59656]
[1724939850164,0.0058317,2571.7,2571.5,7.48536]
[1724939850372,0.0058317,2571.7,2571.5,3.2078]
[1724939850674,0.38872,2571.9,2571.7,0.5677683]
[1724939851270,4.11093905,2572.2,2571.7,0.5677683]
[1724939851271,0.38871,2572.0,2571.7,0.5677683]
[1724939851468,0.38872,2571.9,2571.7,0.5677683]
[1724939852676,4.11093905,2572.2,2571.7,0.5677683]
[1724939853281,0.38871,2572.0,2571.7,0.5677683]
[1724939853780,0.38871,2572.0,2571.5,3.59657]
[1724939854072,0.38871,2572.0,2571.6,0.38875]
[1724939854572,0.38872,2571.9,2571.5,3.2078]
[1724939854774,0.38871,2572.0,2571.6,0.38875]
[1724939854974,0.97173,2572.1,2571.3,41.1742]
[1724939855277,0.38872,2571.9,2571.6,0.38876]
[1724939855474,4.84850016,2572.0,2571.6,0.38876]
[1724939855778,0.97168,2572.3,2571.6,0.38876]
[1724939855779,0.38872,2571.9,2571.6,0.38876]
[1724939856077,4.45979016,2572.1,2571.5,3.2078]
[1724939856078,0.38874,2571.8,2571.5,3.2078]
[1724939856264,0.38873,2571.9,2571.5,3.59657]
[1724939856467,0.38873,2571.8,2571.5,3.2078]
[1724939856669,0.38872,2571.9,2571.5,3.59656]
[1724939856869,0.38871,2572.0,2571.7,0.38874]
[1724939857270,0.38871,2572.0,2571.5,3.2078]
[1724939857482,0.38872,2571.9,2571.7,0.38873]
[1724939857882,0.38873,2571.8,2571.6,0.38875]
[1724939858073,0.38874,2571.8,2571.6,0.38875]
[1724939858384,0.38872,2571.9,2571.7,0.38874]
[1724939858685,0.38872,2571.9,2571.5,3.2078]
[1724939858686,0.38871,2572.0,2571.8,0.38873]
[1724939858981,0.38872,2571.9,2571.6,0.38875]
[1724939859181,0.38871,2572.0,2571.4,8.1378]
[1724939859481,0.38872,2571.9,2571.7,0.38874]
[1724939859677,4.17937,2572.5,2571.4,8.1378]
[1724939859871,0.97164,2572.3,2571.6,0.38876]
[1724939860071,0.38873,2571.9,2571.6,0.38876]
[1724939860273,0.38873,2571.9,2571.7,0.38874]
[1724939860473,0.38873,2571.9,2571.4,3.2078]
[1724939860677,0.38873,2571.9,2571.6,0.38875]
[1724939860895,0.38873,2571.9,2571.7,0.38875]
[1724939861084,8.1378,2572.5,2571.4,3.2078]
[1724939861085,4.49978702,2571.8,2571.4,3.2078]
[1724939861688,0.38878,2571.5,2571.0,3.8948317]
[1724939861875,0.97191,2571.6,2571.0,3.8948317]
[1724939862072,4.50416638,2571.4,2571.1,0.38883]
[1724939862383,3.93565357,2571.6,2571.4,0.38879]
[1724939862571,3.93565357,2571.6,2571.3,0.3888]
[1724939862880,3.93565357,2571.6,2571.2,0.38881]
[1724939862881,0.38877,2571.6,2571.2,0.38881]
[1724939863384,0.38877,2571.6,2571.3,0.3888]
[1724939863686,0.38878,2571.5,2571.2,0.38881]
[1724939863989,0.38878,2571.5,2571.1,5.31883]
[1724939864283,0.38882,2571.3,2571.0,3.8948317]
[1724939864485,4.5326022,2571.4,2571.0,4.2836817]
[1724939864782,0.3888,2571.4,2571.1,0.38883]
[1724939865285,0.3888,2571.4,2571.0,4.2836717]
[1724939865487,0.38882,2571.3,2571.0,4.2836717]
[1724939866182,8.75798,2572.0,2571.2,3.2078]
[1724939866378,0.38878,2571.5,2571.2,3.2078]
[1724939866580,0.38879,2571.4,2571.2,3.2078]
[1724939866778,5.4317152,2571.8,2571.2,3.2078]
[1724939866779,3.2078,2571.7,2571.2,3.2078]
[1724939866983,3.2078,2571.7,2571.4,0.38879]
[1724939867283,4.4598552,2571.7,2571.6,0.38876]
[1724939867488,1.36197,2572.3,2571.4,8.8188]
[1724939867689,1.36197,2572.3,2571.6,3.2078]
[1724939867891,0.38872,2571.9,2571.6,3.59655]
[1724939868188,4.47000768,2572.2,2571.7,0.38874]
[1724939868393,0.38869,2572.1,2571.6,3.59655]
[1724939868594,4.08132768,2572.2,2571.7,0.38874]
[1724939868884,4.23612144,2572.0,2571.3,3.5973]
[1724939869082,4.93,2572.1,2571.4,0.38879]
[1724939869286,0.3689,2572.0,2571.3,3.2078]
[1724939869489,0.3689,2572.0,2571.4,0.38878]
[1724939869683,4.29407813,2571.9,2571.1,4.191]
[1724939869887,4.29407813,2571.9,2571.0,7.4921317]
[1724939870490,4.29407813,2571.9,2571.3,3.2078]
[1724939870679,4.29407813,2571.9,2571.5,0.38877]
[1724939871080,4.29407813,2571.9,2571.3,3.2078]
[1724939871281,4.29407813,2571.9,2571.6,3.59655]
[1724939871475,4.29407813,2571.9,2571.6,3.2078]
[1724939871778,3.2078,2572.4,2571.6,3.2078]
[1724939871985,3.2078,2572.4,2571.9,3.5965]
[1724939872183,4.24613797,2572.2,2572.0,0.3887]
[1724939872383,4.24613797,2572.3,2571.9,3.59651]
[1724939872585,3.2078,2572.4,2571.9,3.59651]
[1724939872784,4.34536734,2572.3,2571.9,3.59651]
[1724939872979,4.34536734,2572.3,2572.0,0.38869]
[1724939873191,0.36,2572.8,2572.2,3.2078]
[1724939873490,0.3538,2573.5,2572.5,8.1378]
[1724939873684,5.2838,2573.5,2572.5,3.2078]
[1724939873882,4.39860121,2573.0,2572.6,0.38861]
[1724939874189,0.7323,2573.6,2572.8,3.59638]
[1724939874487,4.44630214,2573.4,2572.8,3.59638]
[1724939874692,4.44630214,2573.4,2572.8,3.2078]
[1724939874893,5.6623,2573.6,2572.8,3.2078]
[1724939875185,4.44630214,2573.3,2572.7,0.0058317]
[1724939875389,4.44630214,2573.4,2572.8,3.2078]
[1724939875693,5.6623,2573.6,2572.8,3.2078]
[1724939875899,4.25115794,2573.3,2572.8,3.2078]
[1724939876091,4.25115794,2573.4,2572.8,3.2078]
[1724939876388,5.6623,2573.6,2572.8,3.2078]
[1724939876585,4.08783372,2573.3,2572.8,3.2078]
[1724939876979,5.6623,2573.6,2572.8,3.2078]
[1724939877382,4.30893352,2573.3,2572.8,3.2078]
[1724939877585,4.25426109,2573.5,2572.8,3.2078]
[1724939877788,5.6623,2573.6,2572.8,3.2078]
[1724939878085,4.30893352,2573.3,2572.8,3.2078]
[1724939878287,4.30893352,2573.5,2572.8,3.2078]
[1724939878494,5.6623,2573.6,2572.8,3.2078]
[1724939878687,4.23802058,2573.5,2572.8,3.59638]
[1724939879391,4.23802058,2573.5,2572.8,3.2078]
[1724939879587,4.23802058,2573.5,2572.8,3.59638]
[1724939879789,4.23802058,2573.5,2572.8,3.2078]
[1724939879985,4.23802058,2573.5,2572.8,3.59637]
[1724939881296,4.23802058,2573.5,2572.9,0.38856]
[1724939882695,4.62650058,2573.5,2572.8,3.2078]
[1724939882997,4.23802058,2573.5,2572.9,0.38855]
[1724939883500,4.23802058,2573.5,2573.1,3.2078]
[1724939884998,4.23802058,2573.5,2573.2,0.38851]
[1724939885299,4.23802058,2573.5,2573.2,0.38852]
[1724939886399,4.23802058,2573.5,2573.1,3.2078]
[1724939886792,4.23802058,2573.5,2573.2,0.38851]
[1724939887489,4.23802058,2573.5,2573.1,3.59633]
[1724939887891,4.23802058,2573.5,2573.2,0.38852]
[1724939888799,4.23802058,2573.5,2573.3,0.3885]
[1724939889296,4.23802058,2573.5,2573.1,3.2078]
[1724939889297,4.23802058,2573.5,2573.2,0.38851]
[1724939889494,4.23802058,2573.5,2573.2,0.38852]
[1724939889686,4.23802058,2573.5,2573.3,0.3885]
[1724939889891,4.23802058,2573.5,2573.4,0.38849]
[1724939890194,3.2078,2574.3,2574.0,0.38839]
[1724939890396,0.38833,2574.5,2574.1,0.38838]
[1724939890598,4.35543049,2574.2,2574.1,0.38838]
[1724939890799,4.35543049,2574.4,2574.1,0.38838]
[1724939891001,3.2078,2574.7,2574.2,0.38836]
[1724939891002,2.24272046,2574.6,2574.2,0.38836]
[1724939891297,0.38832,2574.6,2574.2,0.38836]
[1724939891502,4.39432453,2574.6,2574.2,0.38836]
[1724939891795,4.78263453,2574.6,2574.2,3.2078]
[1724939891990,4.78263453,2574.6,2574.2,3.59616]
[1724939892395,0.38832,2574.5,2574.2,3.2078]
[1724939892594,4.78264453,2574.6,2574.2,3.59616]
[1724939892807,4.78264453,2574.6,2574.2,3.2078]
[1724939892808,0.38833,2574.5,2574.2,3.2078]
[1724939893098,3.2078,2574.4,2574.0,0.0058317]
[1724939893301,0.38838,2574.1,2574.0,0.0058317]
[1724939893603,4.51366565,2574.1,2574.0,0.0058317]
[1724939893797,8.39846565,2574.1,2574.0,0.0058317]
[1724939894301,4.51366565,2574.1,2574.0,0.0058317]
[1724939894603,16.34040565,2574.1,2574.0,0.0058317]
[1724939894907,4.93,2574.0,2572.9,3.2078]
[1724939895199,0.38853,2573.2,2572.8,0.3706]
[1724939895501,4.17892,2573.7,2572.8,0.3706]
[1724939895502,4.49241553,2573.1,2572.8,0.3706]
[1724939895803,0.38858,2572.9,2572.7,0.0058317]
[1724939896101,4.49242553,2573.0,2572.7,0.0058317]
[1724939896301,4.49242553,2573.0,2572.8,3.2078]
[1724939896302,4.10387553,2573.0,2572.8,3.2078]
[1724939896497,0.38858,2572.8,2572.7,0.0058317]
[1724939896895,0.97149,2572.7,2572.0,7.0928]
[1724939897199,1.54328323,2573.1,2572.0,7.0928]
[1724939897200,0.38869,2572.1,2572.0,7.0928]
[1724939897603,0.38869,2572.1,2571.4,46.3316]
[1724939897604,0.38872,2571.9,2571.5,3.2078]
[1724939897795,3.888,2572.1,2571.5,3.2078]
[1724939897796,0.3887,2572.0,2571.5,3.2078]
[1724939898105,0.3887,2572.0,2571.5,3.2136317]
[1724939898303,0.38872,2571.9,2571.5,3.2136317]
[1724939898607,0.38869,2572.1,2571.5,3.2136317]
[1724939898793,4.12692566,2572.3,2571.8,3.2078]